[Event "Titled Tuesday Blitz February 15 Late 2022"]
[White "Jobava, Baadur"]
[Black "Kavyev, Ruslan"]
[WhiteFideId "13601520"]
[BlackFideId "34110981"]
[WhiteElo "2617"]
[BlackElo "2182"]
[Result "1-0"]
[Round "10"]
[TimeControl "180+1"]
[Date "2022.02.15"]
[WhiteClock "0:02:29"]
[BlackClock "0:00:59"]

1. e4 {[%clk 0:03:00]}  c5 {[%clk 0:02:56]} 2. Nf3 {[%clk 0:03:00]}  d6 {[%clk 0:02:57]} 3. c4 {[%clk 0:03:00]}  Bg4 {[%clk 0:02:55]} 4. Nc3 {[%clk 0:02:59]}  Nc6 {[%clk 0:02:55]} 5. Be2 {[%clk 0:03:00]}  g6 {[%clk 0:02:54]} 6. d3 {[%clk 0:02:59]}  Bg7 {[%clk 0:02:53]} 7. O-O {[%clk 0:02:59]}  Nf6 {[%clk 0:02:51]} 8. Kh1 {[%clk 0:03:00]}  O-O {[%clk 0:02:49]} 9. Be3 {[%clk 0:03:00]}  Bxf3 {[%clk 0:02:48]} 10. Bxf3 {[%clk 0:03:00]}  Nd7 {[%clk 0:02:49]} 11. g3 {[%clk 0:03:00]}  Nd4 {[%clk 0:02:49]} 12. Bg2 {[%clk 0:03:00]}  Rb8 {[%clk 0:02:48]} 13. Rc1 {[%clk 0:02:59]}  a6 {[%clk 0:02:48]} 14. b3 {[%clk 0:02:59]}  b5 {[%clk 0:02:48]} 15. f4 {[%clk 0:02:59]}  b4 {[%clk 0:02:24]} 16. Ne2 {[%clk 0:02:55]}  Nxe2 {[%clk 0:02:24]} 17. Qxe2 {[%clk 0:02:56]}  a5 {[%clk 0:02:24]} 18. g4 {[%clk 0:02:55]}  a4 {[%clk 0:02:23]} 19. g5 {[%clk 0:02:55]}  axb3 {[%clk 0:02:23]} 20. axb3 {[%clk 0:02:56]}  Ra8 {[%clk 0:02:21]} 21. f5 {[%clk 0:02:56]}  Qa5 {[%clk 0:02:19]} 22. Rf2 {[%clk 0:02:49]}  Qa3 {[%clk 0:02:17]} 23. Qd1 {[%clk 0:02:49]}  Ra7 {[%clk 0:02:04]} 24. h4 {[%clk 0:02:48]}  Rfa8 {[%clk 0:02:02]} 25. h5 {[%clk 0:02:48]}  Bd4 {[%clk 0:02:01]} 26. Bxd4 {[%clk 0:02:47]}  cxd4 {[%clk 0:02:02]} 27. fxg6 {[%clk 0:02:44]}  hxg6 {[%clk 0:02:01]} 28. hxg6 {[%clk 0:02:44]}  fxg6 {[%clk 0:02:01]} 29. Bh3 {[%clk 0:02:43]}  Ne5 {[%clk 0:02:00]} 30. Kg2 {[%clk 0:02:39]}  Rf8 {[%clk 0:01:36]} 31. Be6+ {[%clk 0:02:40]}  Kg7 {[%clk 0:01:34]} 32. Rxf8 {[%clk 0:02:30]}  Kxf8 {[%clk 0:01:34]} 33. Qh1 {[%clk 0:02:31]}  Qb2+ {[%clk 0:01:32]} 34. Kg3 {[%clk 0:02:31]}  Nf7 {[%clk 0:00:59]} 35. Rf1 {[%clk 0:02:29]} 1-0


[Site "https://www.chess.com"]

[Event "Titled Tuesday Blitz February 15 Late 2022"]
[White "Kalajzic, Ivan"]
[Black "Osmonbekov, Talaibek"]
[WhiteFideId "14506378"]
[BlackFideId "2017253"]
[WhiteElo "2163"]
[BlackElo "2135"]
[Result "0-1"]
[Round "10"]
[TimeControl "180+1"]
[Date "2022.02.16"]
[WhiteClock "0:00:04"]
[BlackClock "0:00:12"]

1. b3 {[%clk 0:03:00]}  e5 {[%clk 0:02:59]} 2. Bb2 {[%clk 0:03:01]}  d6 {[%clk 0:03:00]} 3. e3 {[%clk 0:03:01]}  f5 {[%clk 0:03:00]} 4. d4 {[%clk 0:03:01]}  e4 {[%clk 0:03:00]} 5. d5 {[%clk 0:02:59]}  Nf6 {[%clk 0:02:59]} 6. h4 {[%clk 0:02:58]}  c6 {[%clk 0:02:57]} 7. Nc3 {[%clk 0:02:56]}  Be7 {[%clk 0:02:54]} 8. Nh3 {[%clk 0:02:56]}  Nbd7 {[%clk 0:02:51]} 9. Nf4 {[%clk 0:02:53]}  Ne5 {[%clk 0:02:50]} 10. Be2 {[%clk 0:02:52]}  O-O {[%clk 0:02:49]} 11. Qd2 {[%clk 0:02:50]}  a5 {[%clk 0:02:48]} 12. a4 {[%clk 0:02:48]}  Bd7 {[%clk 0:02:42]} 13. h5 {[%clk 0:02:30]}  Nfg4 {[%clk 0:02:33]} 14. h6 {[%clk 0:02:11]}  Nxh6 {[%clk 0:02:30]} 15. Rxh6 {[%clk 0:02:09]}  gxh6 {[%clk 0:02:30]} 16. O-O-O {[%clk 0:02:10]}  c5 {[%clk 0:02:12]} 17. f3 {[%clk 0:02:08]}  exf3 {[%clk 0:02:05]} 18. gxf3 {[%clk 0:02:08]}  Kh8 {[%clk 0:02:00]} 19. Nh5 {[%clk 0:02:01]}  Be8 {[%clk 0:01:42]} 20. f4 {[%clk 0:02:00]}  Bxh5 {[%clk 0:01:42]} 21. Bxh5 {[%clk 0:02:01]}  Ng4 {[%clk 0:01:37]} 22. Rg1 {[%clk 0:01:39]}  Bf6 {[%clk 0:01:35]} 23. Bxg4 {[%clk 0:01:26]}  fxg4 {[%clk 0:01:35]} 24. Rxg4 {[%clk 0:01:27]}  h5 {[%clk 0:01:32]} 25. Rg1 {[%clk 0:01:23]}  Rg8 {[%clk 0:01:31]} 26. Rh1 {[%clk 0:01:20]}  h4 {[%clk 0:01:31]} 27. Ne4 {[%clk 0:01:19]}  Bxb2+ {[%clk 0:01:27]} 28. Kxb2 {[%clk 0:01:20]}  Qe7 {[%clk 0:01:20]} 29. Qc3+ {[%clk 0:01:18]}  Rg7 {[%clk 0:01:20]} 30. Ng5 {[%clk 0:01:16]}  Kg8 {[%clk 0:01:11]} 31. Ne6 {[%clk 0:01:03]}  Rg3 {[%clk 0:01:03]} 32. f5 {[%clk 0:01:00]}  b5 {[%clk 0:00:50]} 33. f6 {[%clk 0:00:59]}  Qf7 {[%clk 0:00:48]} 34. Rxh4 {[%clk 0:00:53]}  b4 {[%clk 0:00:42]} 35. Qc4 {[%clk 0:00:43]}  Qxf6+ {[%clk 0:00:42]} 36. Ka2 {[%clk 0:00:42]}  Kh8 {[%clk 0:00:35]} 37. Rg4 {[%clk 0:00:39]}  Rg8 {[%clk 0:00:33]} 38. Rxg3 {[%clk 0:00:38]}  Rxg3 {[%clk 0:00:33]} 39. Qa6 {[%clk 0:00:37]}  Qe5 {[%clk 0:00:24]} 40. Qc8+ {[%clk 0:00:35]}  Rg8 {[%clk 0:00:24]} 41. Qd7 {[%clk 0:00:28]}  Qc3 {[%clk 0:00:20]} 42. Ng5 {[%clk 0:00:11]}  Rxg5 {[%clk 0:00:12]} 43. Qd8+ {[%clk 0:00:11]}  Rg8 {[%clk 0:00:12]} 44. Qf6+ {[%clk 0:00:04]}  Qxf6 {[%clk 0:00:12]} 0-1


[Site "https://www.chess.com"]

[Event "Titled Tuesday Blitz February 15 Late 2022"]
[White "Kopczynski, Michal"]
[Black "Curtis, John"]
[WhiteFideId "1124200"]
[BlackFideId "3200256"]
[WhiteElo "2235"]
[BlackElo "2203"]
[Result "1/2-1/2"]
[Round "10"]
[TimeControl "180+1"]
[Date "2022.02.16"]
[WhiteClock "0:00:10"]
[BlackClock "0:00:42"]

1. e4 {[%clk 0:03:00]}  c5 {[%clk 0:02:59]} 2. d4 {[%clk 0:03:01]}  cxd4 {[%clk 0:02:58]} 3. c3 {[%clk 0:03:01]}  d3 {[%clk 0:02:58]} 4. Bxd3 {[%clk 0:03:01]}  Nc6 {[%clk 0:02:55]} 5. f4 {[%clk 0:03:01]}  d5 {[%clk 0:02:55]} 6. Nf3 {[%clk 0:03:02]}  dxe4 {[%clk 0:02:53]} 7. Bxe4 {[%clk 0:03:03]}  Qxd1+ {[%clk 0:02:53]} 8. Kxd1 {[%clk 0:03:04]}  Nf6 {[%clk 0:02:53]} 9. Bd3 {[%clk 0:03:02]}  Bg4 {[%clk 0:02:51]} 10. Kc2 {[%clk 0:03:01]}  Bxf3 {[%clk 0:02:49]} 11. gxf3 {[%clk 0:03:02]}  Rc8 {[%clk 0:02:49]} 12. Kb3 {[%clk 0:02:57]}  Nd5 {[%clk 0:02:43]} 13. Be4 {[%clk 0:02:52]}  e6 {[%clk 0:02:40]} 14. Bxd5 {[%clk 0:02:52]}  exd5 {[%clk 0:02:40]} 15. Rd1 {[%clk 0:02:42]}  d4 {[%clk 0:02:37]} 16. cxd4 {[%clk 0:02:40]}  Nxd4+ {[%clk 0:02:37]} 17. Rxd4 {[%clk 0:02:35]}  Rxc1 {[%clk 0:02:36]} 18. a3 {[%clk 0:02:26]}  Bc5 {[%clk 0:02:23]} 19. Rc4 {[%clk 0:02:13]}  Rxc4 {[%clk 0:02:21]} 20. Kxc4 {[%clk 0:02:14]}  Be3 {[%clk 0:02:16]} 21. Nc3 {[%clk 0:02:13]}  Bxf4 {[%clk 0:02:12]} 22. Nd5 {[%clk 0:02:04]}  Bd6 {[%clk 0:02:04]} 23. Rg1 {[%clk 0:01:42]}  g6 {[%clk 0:02:03]} 24. Re1+ {[%clk 0:01:33]}  Kd7 {[%clk 0:01:55]} 25. Nf6+ {[%clk 0:01:30]}  Kc6 {[%clk 0:01:55]} 26. b4 {[%clk 0:01:29]}  b5+ {[%clk 0:01:50]} 27. Kd4 {[%clk 0:01:28]}  Rd8 {[%clk 0:01:47]} 28. Rc1+ {[%clk 0:01:10]}  Kb7 {[%clk 0:01:46]} 29. Nd5 {[%clk 0:01:02]}  h5 {[%clk 0:01:24]} 30. h3 {[%clk 0:00:55]}  a6 {[%clk 0:01:20]} 31. Ke4 {[%clk 0:00:35]}  Bg3 {[%clk 0:01:09]} 32. f4 {[%clk 0:00:29]}  f5+ {[%clk 0:00:57]} 33. Ke5 {[%clk 0:00:26]}  g5 {[%clk 0:00:54]} 34. Rc7+ {[%clk 0:00:19]}  Kb8 {[%clk 0:00:53]} 35. Rg7 {[%clk 0:00:17]}  Bxf4+ {[%clk 0:00:51]} 36. Nxf4 {[%clk 0:00:17]}  gxf4 {[%clk 0:00:51]} 37. Kxf4 {[%clk 0:00:17]}  Rd3 {[%clk 0:00:50]} 38. Kxf5 {[%clk 0:00:15]}  Rxh3 {[%clk 0:00:50]} 39. Ke6 {[%clk 0:00:15]}  Rxa3 {[%clk 0:00:49]} 40. Kd6 {[%clk 0:00:15]}  Rc3 {[%clk 0:00:49]} 41. Rh7 {[%clk 0:00:14]}  h4 {[%clk 0:00:48]} 42. Rxh4 {[%clk 0:00:14]}  Kb7 {[%clk 0:00:49]} 43. Rh7+ {[%clk 0:00:13]}  Kb6 {[%clk 0:00:49]} 44. Kd5 {[%clk 0:00:13]}  Rd3+ {[%clk 0:00:48]} 45. Ke5 {[%clk 0:00:13]}  Rb3 {[%clk 0:00:49]} 46. Rh6+ {[%clk 0:00:13]}  Kb7 {[%clk 0:00:49]} 47. Rh7+ {[%clk 0:00:13]}  Kb8 {[%clk 0:00:48]} 48. Rh6 {[%clk 0:00:12]}  Rxb4 {[%clk 0:00:47]} 49. Rxa6 {[%clk 0:00:12]}  Kb7 {[%clk 0:00:47]} 50. Rh6 {[%clk 0:00:12]}  Rc4 {[%clk 0:00:48]} 51. Kd5 {[%clk 0:00:12]}  Rc1 {[%clk 0:00:47]} 52. Kd4 {[%clk 0:00:11]}  b4 {[%clk 0:00:45]} 53. Kd3 {[%clk 0:00:11]}  Rc6 {[%clk 0:00:45]} 54. Rh4 {[%clk 0:00:10]}  Rc3+ {[%clk 0:00:43]} 55. Kd2 {[%clk 0:00:10]}  Rb3 {[%clk 0:00:43]} 56. Kc2 {[%clk 0:00:10]}  Rc3+ {[%clk 0:00:42]} 57. Kb2 {[%clk 0:00:11]}  Rc6 {[%clk 0:00:41]} 58. Rxb4+ {[%clk 0:00:10]}  Rb6 {[%clk 0:00:41]} 59. Rxb6+ {[%clk 0:00:10]}  Kxb6 {[%clk 0:00:42]} 1/2-1/2


[Site "https://www.chess.com"]

[Event "Titled Tuesday Blitz February 15 Late 2022"]
[White "Koziorowicz, Michal"]
[Black "Mikhailov, Viacheslav"]
[WhiteFideId "21809194"]
[BlackFideId "4187369"]
[WhiteElo "2166"]
[BlackElo "2381"]
[Result "1-0"]
[Round "10"]
[TimeControl "180+1"]
[Date "2022.02.15"]
[WhiteClock "0:00:23"]
[BlackClock "0:00:04"]

1. e4 {[%clk 0:03:00]}  d6 {[%clk 0:03:00]} 2. d4 {[%clk 0:03:00]}  Nf6 {[%clk 0:03:00]} 3. Nc3 {[%clk 0:03:01]}  g6 {[%clk 0:03:00]} 4. Be3 {[%clk 0:03:01]}  Bg7 {[%clk 0:03:00]} 5. h4 {[%clk 0:03:01]}  O-O {[%clk 0:03:00]} 6. Nf3 {[%clk 0:02:59]}  Bg4 {[%clk 0:02:59]} 7. Be2 {[%clk 0:02:58]}  Nc6 {[%clk 0:02:59]} 8. Nd2 {[%clk 0:02:48]}  Bxe2 {[%clk 0:02:58]} 9. Qxe2 {[%clk 0:02:48]}  e5 {[%clk 0:02:59]} 10. d5 {[%clk 0:02:49]}  Nd4 {[%clk 0:02:59]} 11. Qd3 {[%clk 0:02:48]}  c6 {[%clk 0:02:57]} 12. h5 {[%clk 0:02:44]}  cxd5 {[%clk 0:02:56]} 13. hxg6 {[%clk 0:02:41]}  fxg6 {[%clk 0:02:50]} 14. Nxd5 {[%clk 0:02:38]}  Nxd5 {[%clk 0:02:50]} 15. exd5 {[%clk 0:02:38]}  Rc8 {[%clk 0:02:38]} 16. c3 {[%clk 0:02:37]}  Nf5 {[%clk 0:02:39]} 17. Ne4 {[%clk 0:02:36]}  Nxe3 {[%clk 0:02:26]} 18. Qxe3 {[%clk 0:02:37]}  Rf4 {[%clk 0:02:25]} 19. g3 {[%clk 0:02:25]}  Rf5 {[%clk 0:02:10]} 20. O-O-O {[%clk 0:02:24]}  b5 {[%clk 0:02:07]} 21. Kb1 {[%clk 0:02:23]}  a5 {[%clk 0:02:06]} 22. Rc1 {[%clk 0:02:11]}  Qf8 {[%clk 0:02:05]} 23. Rh4 {[%clk 0:01:57]}  h5 {[%clk 0:01:56]} 24. Qe2 {[%clk 0:01:43]}  b4 {[%clk 0:01:47]} 25. c4 {[%clk 0:01:41]}  a4 {[%clk 0:01:47]} 26. g4 {[%clk 0:01:34]}  Rf4 {[%clk 0:01:45]} 27. Rch1 {[%clk 0:01:33]}  a3 {[%clk 0:01:34]} 28. gxh5 {[%clk 0:01:30]}  Qf5 {[%clk 0:01:33]} 29. Rxf4 {[%clk 0:01:28]}  exf4 {[%clk 0:01:34]} 30. f3 {[%clk 0:01:23]}  b3 {[%clk 0:01:27]} 31. axb3 {[%clk 0:00:56]}  axb2 {[%clk 0:01:23]} 32. h6 {[%clk 0:00:56]}  Ra8 {[%clk 0:01:19]} 33. hxg7 {[%clk 0:00:48]}  Ra1+ {[%clk 0:01:18]} 34. Kxb2 {[%clk 0:00:48]}  Rxh1 {[%clk 0:01:19]} 35. Nc3 {[%clk 0:00:41]}  Qf6 {[%clk 0:00:58]} 36. b4 {[%clk 0:00:41]}  Kxg7 {[%clk 0:00:56]} 37. b5 {[%clk 0:00:41]}  Rh8 {[%clk 0:00:26]} 38. Kb3 {[%clk 0:00:36]}  Ra8 {[%clk 0:00:24]} 39. Qe4 {[%clk 0:00:27]}  g5 {[%clk 0:00:21]} 40. Ne2 {[%clk 0:00:25]}  Qa1 {[%clk 0:00:06]} 41. Qe7+ {[%clk 0:00:25]}  Kg6 {[%clk 0:00:06]} 42. Qxd6+ {[%clk 0:00:24]}  Kh5 {[%clk 0:00:06]} 43. Nc3 {[%clk 0:00:24]}  Re8 {[%clk 0:00:02]} 44. Qd7 {[%clk 0:00:22]}  Rh8 {[%clk 0:00:02]} 45. b6 {[%clk 0:00:21]}  Qa5 {[%clk 0:00:01]} 46. Qh3+ {[%clk 0:00:21]}  Kg6 {[%clk 0:00:01]} 47. Qxh8 {[%clk 0:00:22]}  Qxb6+ {[%clk 0:00:02]} 48. Nb5 {[%clk 0:00:22]}  Qe3+ {[%clk 0:00:03]} 49. Qc3 {[%clk 0:00:22]}  Qe2 {[%clk 0:00:02]} 50. Qc2+ {[%clk 0:00:21]}  Qxc2+ {[%clk 0:00:02]} 51. Kxc2 {[%clk 0:00:22]}  g4 {[%clk 0:00:03]} 52. fxg4 {[%clk 0:00:22]}  Kg5 {[%clk 0:00:04]} 53. Nd4 {[%clk 0:00:22]}  Kxg4 {[%clk 0:00:04]} 54. Kd3 {[%clk 0:00:22]}  Kg3 {[%clk 0:00:05]} 55. Ke4 {[%clk 0:00:23]}  f3 {[%clk 0:00:04]} 56. Nxf3 {[%clk 0:00:23]} 1-0


[Site "https://www.chess.com"]

[Event "Titled Tuesday Blitz February 15 Late 2022"]
[White "Martirosyan, Haik M."]
[Black "Dubov, Daniil"]
[WhiteFideId "13306553"]
[BlackFideId "24126055"]
[WhiteElo "2735"]
[BlackElo "2791"]
[Result "1/2-1/2"]
[Round "10"]
[TimeControl "180+1"]
[Date "2022.02.15"]
[WhiteClock "0:00:21"]
[BlackClock "0:00:10"]

1. d4 {[%clk 0:03:00]}  Nf6 {[%clk 0:02:59]} 2. c4 {[%clk 0:03:01]}  g6 {[%clk 0:02:59]} 3. Nf3 {[%clk 0:02:59]}  Bg7 {[%clk 0:02:59]} 4. g3 {[%clk 0:03:00]}  c6 {[%clk 0:02:58]} 5. Bg2 {[%clk 0:03:00]}  d5 {[%clk 0:02:58]} 6. cxd5 {[%clk 0:03:00]}  cxd5 {[%clk 0:02:58]} 7. Nc3 {[%clk 0:03:00]}  O-O {[%clk 0:02:58]} 8. O-O {[%clk 0:03:00]}  Ne4 {[%clk 0:02:58]} 9. Ng5 {[%clk 0:02:52]}  Nf6 {[%clk 0:02:42]} 10. Bf4 {[%clk 0:02:50]}  Nc6 {[%clk 0:02:40]} 11. Nf3 {[%clk 0:02:46]}  Ne4 {[%clk 0:02:40]} 12. Ne5 {[%clk 0:02:46]}  Nxc3 {[%clk 0:02:38]} 13. bxc3 {[%clk 0:02:47]}  Nxe5 {[%clk 0:02:32]} 14. Bxe5 {[%clk 0:02:45]}  Bxe5 {[%clk 0:02:27]} 15. dxe5 {[%clk 0:02:46]}  Be6 {[%clk 0:02:27]} 16. Qd4 {[%clk 0:02:36]}  Qc7 {[%clk 0:02:26]} 17. Rfd1 {[%clk 0:02:30]}  Rfd8 {[%clk 0:02:24]} 18. a4 {[%clk 0:02:25]}  b6 {[%clk 0:02:22]} 19. Ra3 {[%clk 0:02:22]}  Rac8 {[%clk 0:02:20]} 20. h4 {[%clk 0:02:20]}  Qb8 {[%clk 0:01:59]} 21. Qe3 {[%clk 0:02:11]}  Rc4 {[%clk 0:01:57]} 22. a5 {[%clk 0:02:08]}  Qc7 {[%clk 0:01:43]} 23. axb6 {[%clk 0:02:05]}  axb6 {[%clk 0:01:43]} 24. h5 {[%clk 0:02:02]}  Rc8 {[%clk 0:01:11]} 25. Bxd5 {[%clk 0:01:41]}  Bxd5 {[%clk 0:01:11]} 26. Rxd5 {[%clk 0:01:41]}  Qc6 {[%clk 0:01:06]} 27. Qd3 {[%clk 0:01:38]}  gxh5 {[%clk 0:01:02]} 28. Rd8+ {[%clk 0:01:35]}  Kg7 {[%clk 0:00:59]} 29. Rd7 {[%clk 0:01:28]}  Qe6 {[%clk 0:00:56]} 30. Qd2 {[%clk 0:01:23]}  h4 {[%clk 0:00:32]} 31. Qg5+ {[%clk 0:01:16]}  Qg6 {[%clk 0:00:32]} 32. Qxg6+ {[%clk 0:01:13]}  Kxg6 {[%clk 0:00:31]} 33. gxh4 {[%clk 0:01:06]}  Re8 {[%clk 0:00:19]} 34. Rb3 {[%clk 0:01:01]}  Rxh4 {[%clk 0:00:19]} 35. Rxb6+ {[%clk 0:01:00]}  Kf5 {[%clk 0:00:19]} 36. f3 {[%clk 0:00:54]}  Rc4 {[%clk 0:00:17]} 37. e6 {[%clk 0:00:50]}  fxe6 {[%clk 0:00:14]} 38. Rd3 {[%clk 0:00:50]}  Rec8 {[%clk 0:00:13]} 39. Re3 {[%clk 0:00:45]}  R8c6 {[%clk 0:00:12]} 40. Rb3 {[%clk 0:00:36]}  e5 {[%clk 0:00:12]} 41. Kf2 {[%clk 0:00:35]}  e4 {[%clk 0:00:13]} 42. fxe4+ {[%clk 0:00:32]}  Rxe4 {[%clk 0:00:11]} 43. Rb5+ {[%clk 0:00:32]}  e5 {[%clk 0:00:11]} 44. Rxe4 {[%clk 0:00:24]}  Kxe4 {[%clk 0:00:10]} 45. Rb7 {[%clk 0:00:24]}  Rxc3 {[%clk 0:00:08]} 46. Rxh7 {[%clk 0:00:23]}  Kd5 {[%clk 0:00:09]} 47. Rd7+ {[%clk 0:00:22]}  Ke4 {[%clk 0:00:09]} 48. Rh7 {[%clk 0:00:22]}  Ra3 {[%clk 0:00:09]} 49. Rh4+ {[%clk 0:00:21]}  Kd5 {[%clk 0:00:10]} 1/2-1/2


[Site "https://www.chess.com"]

[Event "Titled Tuesday Blitz February 15 Late 2022"]
[White "Michelakos, Panagiotis"]
[Black "Abdrlauf, Elham"]
[WhiteFideId "4216067"]
[BlackFideId "1533533"]
[WhiteElo "2140"]
[BlackElo "2334"]
[Result "1-0"]
[Round "10"]
[TimeControl "180+1"]
[Date "2022.02.15"]
[WhiteClock "0:00:07"]
[BlackClock "0:00:06"]

1. d4 {[%clk 0:03:00]}  Nf6 {[%clk 0:02:56]} 2. Bg5 {[%clk 0:02:59]}  e6 {[%clk 0:02:56]} 3. e4 {[%clk 0:02:58]}  h6 {[%clk 0:02:56]} 4. Bxf6 {[%clk 0:02:57]}  Qxf6 {[%clk 0:02:56]} 5. c3 {[%clk 0:02:58]}  c5 {[%clk 0:02:54]} 6. Nf3 {[%clk 0:02:52]}  cxd4 {[%clk 0:02:53]} 7. cxd4 {[%clk 0:02:50]}  Bb4+ {[%clk 0:02:54]} 8. Nc3 {[%clk 0:02:45]}  d6 {[%clk 0:02:46]} 9. Qa4+ {[%clk 0:02:39]}  Nc6 {[%clk 0:02:46]} 10. Bb5 {[%clk 0:02:39]}  Bd7 {[%clk 0:02:44]} 11. O-O {[%clk 0:02:35]}  Bxc3 {[%clk 0:02:44]} 12. bxc3 {[%clk 0:02:34]}  a6 {[%clk 0:02:40]} 13. d5 {[%clk 0:02:31]}  O-O {[%clk 0:01:51]} 14. Bxc6 {[%clk 0:02:09]}  bxc6 {[%clk 0:01:51]} 15. dxc6 {[%clk 0:02:07]}  Be8 {[%clk 0:01:51]} 16. Rad1 {[%clk 0:02:00]}  Rc8 {[%clk 0:01:11]} 17. Rxd6 {[%clk 0:01:22]}  Qxc3 {[%clk 0:01:09]} 18. Nd4 {[%clk 0:01:22]}  Qc5 {[%clk 0:01:03]} 19. e5 {[%clk 0:01:11]}  Qxe5 {[%clk 0:01:02]} 20. Qa3 {[%clk 0:01:11]}  Qe4 {[%clk 0:00:44]} 21. Qxa6 {[%clk 0:00:52]}  Rc7 {[%clk 0:00:37]} 22. Qb6 {[%clk 0:00:44]}  Re7 {[%clk 0:00:13]} 23. c7 {[%clk 0:00:36]}  Bd7 {[%clk 0:00:14]} 24. Rc1 {[%clk 0:00:31]}  Rc8 {[%clk 0:00:08]} 25. Nb5 {[%clk 0:00:28]}  Kh7 {[%clk 0:00:03]} 26. Na7 {[%clk 0:00:27]}  Qf4 {[%clk 0:00:02]} 27. Qb1+ {[%clk 0:00:24]}  f5 {[%clk 0:00:01]} 28. Nxc8 {[%clk 0:00:19]}  Bxc8 {[%clk 0:00:02]} 29. Rd8 {[%clk 0:00:19]}  Ba6 {[%clk 0:00:02]} 30. c8=Q {[%clk 0:00:16]}  Bxc8 {[%clk 0:00:03]} 31. Rdxc8 {[%clk 0:00:16]}  Rd7 {[%clk 0:00:01]} 32. g3 {[%clk 0:00:14]}  Qf3 {[%clk 0:00:01]} 33. Qb3 {[%clk 0:00:12]}  Rd3 {[%clk 0:00:01]} 34. Qxe6 {[%clk 0:00:10]}  Rd2 {[%clk 0:00:01]} 35. Qg8+ {[%clk 0:00:09]}  Kg6 {[%clk 0:00:02]} 36. Qe8+ {[%clk 0:00:09]}  Kh7 {[%clk 0:00:02]} 37. Qe1 {[%clk 0:00:08]}  Re2 {[%clk 0:00:01]} 38. Qf1 {[%clk 0:00:07]}  Rxa2 {[%clk 0:00:02]} 39. R8c3 {[%clk 0:00:07]}  Qg4 {[%clk 0:00:02]} 40. R1c2 {[%clk 0:00:06]}  Ra5 {[%clk 0:00:02]} 41. Qd3 {[%clk 0:00:06]}  Qg6 {[%clk 0:00:02]} 42. Kg2 {[%clk 0:00:06]}  Qe6 {[%clk 0:00:01]} 43. Rc6 {[%clk 0:00:05]}  Qe5 {[%clk 0:00:01]} 44. Qf3 {[%clk 0:00:04]}  Rd5 {[%clk 0:00:02]} 45. Re2 {[%clk 0:00:04]}  Qd4 {[%clk 0:00:02]} 46. Rce6 {[%clk 0:00:04]}  Ra5 {[%clk 0:00:02]} 47. h4 {[%clk 0:00:04]}  Qc4 {[%clk 0:00:02]} 48. h5 {[%clk 0:00:04]}  Qc8 {[%clk 0:00:02]} 49. R6e5 {[%clk 0:00:03]}  Ra7 {[%clk 0:00:02]} 50. Qxf5+ {[%clk 0:00:04]}  Qxf5 {[%clk 0:00:02]} 51. Rxf5 {[%clk 0:00:05]}  Rb7 {[%clk 0:00:03]} 52. Rfe5 {[%clk 0:00:05]}  g6 {[%clk 0:00:03]} 53. Re7+ {[%clk 0:00:06]}  Kg8 {[%clk 0:00:04]} 54. Rxb7 {[%clk 0:00:06]}  Kf8 {[%clk 0:00:05]} 55. Ra2 {[%clk 0:00:06]}  Ke8 {[%clk 0:00:06]} 56. Ra8# {[%clk 0:00:07]} 1-0


[Site "https://www.chess.com"]

[Event "Titled Tuesday Blitz February 15 Late 2022"]
[White "Miszler, Levente"]
[Black "Tregubov, Pavel V."]
[WhiteFideId "763276"]
[BlackFideId "4115341"]
[WhiteElo "2406"]
[BlackElo "2610"]
[Result "0-1"]
[Round "10"]
[TimeControl "180+1"]
[Date "2022.02.16"]
[WhiteClock "0:00:30"]
[BlackClock "0:00:20"]

1. Nf3 {[%clk 0:03:00]}  Nf6 {[%clk 0:02:58]} 2. c4 {[%clk 0:03:00]}  c5 {[%clk 0:02:57]} 3. Nc3 {[%clk 0:02:58]}  Nc6 {[%clk 0:02:57]} 4. g3 {[%clk 0:02:58]}  d5 {[%clk 0:02:57]} 5. cxd5 {[%clk 0:02:57]}  Nxd5 {[%clk 0:02:58]} 6. Nxd5 {[%clk 0:02:57]}  Qxd5 {[%clk 0:02:57]} 7. Bg2 {[%clk 0:02:58]}  e5 {[%clk 0:02:51]} 8. d3 {[%clk 0:02:58]}  Be7 {[%clk 0:02:30]} 9. O-O {[%clk 0:02:55]}  O-O {[%clk 0:02:28]} 10. Be3 {[%clk 0:02:52]}  Qe6 {[%clk 0:01:57]} 11. a3 {[%clk 0:02:42]}  Bd7 {[%clk 0:01:53]} 12. Rc1 {[%clk 0:02:43]}  Nd4 {[%clk 0:01:49]} 13. Bxd4 {[%clk 0:02:42]}  exd4 {[%clk 0:01:38]} 14. Re1 {[%clk 0:02:39]}  Rad8 {[%clk 0:01:36]} 15. e3 {[%clk 0:02:39]}  dxe3 {[%clk 0:01:31]} 16. Rxe3 {[%clk 0:02:38]}  Qd6 {[%clk 0:01:26]} 17. Qe2 {[%clk 0:02:15]}  Bf6 {[%clk 0:01:23]} 18. Ne5 {[%clk 0:02:15]}  b6 {[%clk 0:01:10]} 19. Rd1 {[%clk 0:01:49]}  Ba4 {[%clk 0:01:08]} 20. Re1 {[%clk 0:01:44]}  Bb5 {[%clk 0:01:08]} 21. Nc4 {[%clk 0:01:43]}  Qd4 {[%clk 0:01:07]} 22. Be4 {[%clk 0:01:36]}  Bxc4 {[%clk 0:01:00]} 23. dxc4 {[%clk 0:01:36]}  Qxb2 {[%clk 0:01:00]} 24. Qh5 {[%clk 0:01:19]}  g6 {[%clk 0:00:59]} 25. Qg4 {[%clk 0:01:19]}  Bc3 {[%clk 0:00:54]} 26. Rf1 {[%clk 0:01:15]}  f5 {[%clk 0:00:51]} 27. Bxf5 {[%clk 0:01:03]}  Rxf5 {[%clk 0:00:51]} 28. Qh4 {[%clk 0:01:02]}  Bf6 {[%clk 0:00:50]} 29. Qe4 {[%clk 0:00:59]}  Re5 {[%clk 0:00:48]} 30. Qf4 {[%clk 0:00:58]}  Rf8 {[%clk 0:00:40]} 31. Qg4 {[%clk 0:00:54]}  Rxe3 {[%clk 0:00:34]} 32. fxe3 {[%clk 0:00:55]}  Bg7 {[%clk 0:00:33]} 33. Qe6+ {[%clk 0:00:51]}  Kh8 {[%clk 0:00:33]} 34. Rf7 {[%clk 0:00:49]}  Rxf7 {[%clk 0:00:32]} 35. Qxf7 {[%clk 0:00:50]}  Qf6 {[%clk 0:00:30]} 36. Qxa7 {[%clk 0:00:50]}  h5 {[%clk 0:00:29]} 37. a4 {[%clk 0:00:47]}  Qe6 {[%clk 0:00:23]} 38. Kf2 {[%clk 0:00:43]}  Bh6 {[%clk 0:00:23]} 39. a5 {[%clk 0:00:42]}  Qxe3+ {[%clk 0:00:22]} 40. Kg2 {[%clk 0:00:42]}  Qe4+ {[%clk 0:00:20]} 41. Kh3 {[%clk 0:00:40]}  Qf5+ {[%clk 0:00:20]} 42. Kg2 {[%clk 0:00:40]}  bxa5 {[%clk 0:00:21]} 43. Qxa5 {[%clk 0:00:37]}  Bg7 {[%clk 0:00:21]} 44. Qd8+ {[%clk 0:00:35]}  Kh7 {[%clk 0:00:21]} 45. Qe7 {[%clk 0:00:32]}  Qc2+ {[%clk 0:00:20]} 46. Kh3 {[%clk 0:00:32]}  Qxc4 {[%clk 0:00:20]} 47. Kg2 {[%clk 0:00:31]}  Qd5+ {[%clk 0:00:20]} 48. Kh3 {[%clk 0:00:29]}  c4 {[%clk 0:00:20]} 49. g4 {[%clk 0:00:30]}  Qf3+ {[%clk 0:00:19]} 50. Kh4 {[%clk 0:00:30]}  Qxg4# {[%clk 0:00:20]} 0-1


[Site "https://www.chess.com"]